fUST/lending_fUST_20240605
["ID","MTS","AMOUNT","RATE_DAILY","PERIOD"]
[328553309,1717527441460,273.37336231,9.9e-05,2]
[328553310,1717527450724,273.37336231,9.9e-05,2]
[328553311,1717527458566,273.37336231,9.9e-05,2]
[328553312,1717527467268,273.37336231,9.9e-05,2]
[328553313,1717527475150,273.37336231,9.9e-05,2]
[328553314,1717527484454,273.37336231,9.9e-05,2]
[328553315,1717527492594,273.37336231,9.9e-05,2]
[328553316,1717527494585,773.91751555,9.999e-05,2]
[328553317,1717527501810,273.37336231,9.9e-05,2]
[328553318,1717527504334,515.13028145,9.999e-05,2]
[328553319,1717527509644,273.37336231,9.9e-05,2]
[328553320,1717527517726,273.37336231,9.9e-05,2]
[328553321,1717527524491,157.00890154,0.00015,2]
[328553322,1717527526155,273.37336231,9.9e-05,2]
[328553323,1717527526188,2308.05788395,0.0001497,2]
[328553324,1717527534210,273.37336231,9.9e-05,2]
[328553325,1717527542535,317.947889,0.0001408,2]
[328553326,1717527542619,273.37336231,9.9e-05,2]
[328553327,1717527551826,273.37336231,9.9e-05,2]
[328553328,1717527559698,273.37336231,9.9e-05,2]
[328553329,1717527568849,273.37336231,9.9e-05,2]
[328553330,1717527577434,273.37336231,9.9e-05,2]
[328553331,1717527585361,273.37336231,9.9e-05,2]
[328553332,1717527591013,8628.41427762,0.0002012,10]
[328553333,1717527593305,273.37336231,9.9e-05,2]
[328553334,1717527602117,208.01607628,9.9e-05,2]
[328553335,1717527622610,24900.0,0.00014061,2]
[328553336,1717527670002,154.9690062,9.999e-05,2]
[328553337,1717527723895,154.9690062,9.999e-05,2]
[328553338,1717527733023,154.9690062,9.999e-05,2]
[328553340,1717527750170,1421.74004728,0.00014948,2]
[328553341,1717527800749,187.21461558,9.999e-05,2]
[328553342,1717527831767,2019.5506485,0.0001494,2]
[328553343,1717527863200,154.9690062,9.999e-05,2]
[328553344,1717527896869,4234.71341694,0.00014997,2]
[328553345,1717527919909,773.91751555,9.999e-05,2]
[328553346,1717527964264,157.00890154,0.00015,2]
[328553347,1717528107072,154.9690062,9.999e-05,2]
[328553348,1717528122149,158.973944,0.00014018,2]
[328553352,1717528161898,1767.10681742,0.00014912,2]
[328553353,1717528167943,1137.3920378,0.0001491,2]
[328553458,1717528239900,-773.91751555,0.00015003,2]
[328553460,1717528239910,-235.7288265,0.00015004,2]
[328553462,1717528239923,-661.39490665,0.00015004,2]
[328553464,1717528239937,-1088.81385983,0.00015004,2]
[328553498,1717528243431,-1902.27689005,0.00015003,2]
[328553499,1717528243443,-8547.09414603,0.00015004,2]
[328553501,1717528243452,-1981.96946842,0.00015005,2]
[328553502,1717528243461,-19292.48922816,0.00015005,2]
[328553503,1717528243470,-7006.95009917,0.00015005,2]
[328553504,1717528243483,-8738.78756485,0.00015005,2]
[328553566,1717528244506,-43783.74618874,0.00015005,2]
[328553568,1717528244515,-18915.67347219,0.00015006,2]
[328553570,1717528244527,-2515.70115795,0.00015006,2]
[328553703,1717528249297,187.21461558,9.999e-05,2]
[328553906,1717528263157,3544.50543079,0.00014009,2]
[328553907,1717528263180,21355.49456921,0.00014009,2]
[328553908,1717528270858,250.0,0.00014005,2]
[328553909,1717528275846,631.61,0.00010959,2]
[328553910,1717528279585,154.9690062,0.00015,2]
[328553911,1717528287960,1138.28233504,0.00015,2]
[328553912,1717528295964,154.9690062,9.999e-05,2]
[328553913,1717528303619,154.9690062,0.00015,2]
[328553914,1717528308038,154.9690062,9.999e-05,2]
[328553915,1717528309136,9581.0500174,0.00015,2]
[328553916,1717528310951,773.91751555,0.00015,2]
[328553917,1717528311981,272.59737518,0.00015,2]
[328553918,1717528312069,42066.57753995,0.00015,2]
[328553919,1717528313628,154.9690062,9.999e-05,2]
[328553920,1717528316463,154.9690062,9.999e-05,2]
[328553921,1717528316515,59529.48385276,0.00015,2]
[328553922,1717528318998,1902.27689005,0.00015,2]
[328553923,1717528320237,11568.89586766,0.00015,2]
[328553924,1717528329553,923.37699481,0.00014,2]
[328553925,1717528378634,16179.36673626,0.00014,2]
[328553926,1717528398634,1054.58759209,0.00014,2]
[328553929,1717528582834,388.6620402,0.00013237,2]
[328553930,1717528695573,158.9739456,0.00013699,2]
[328553931,1717528729319,187.21461558,9.999e-05,2]
[328553932,1717528754000,773.91751555,9.999e-05,2]
[328553933,1717528822349,24900.0,0.00013129,2]
[328553934,1717528868071,1709.8607377,0.00013131,2]
[328553935,1717528932675,1592.87810793,0.00014021,2]
[328553936,1717528981298,909.91363024,0.00014019,2]
[328553938,1717529203587,773.91751555,9.999e-05,2]
[328553939,1717529214122,1393.7683445,0.00014029,2]
[328553943,1717529223352,1902.27689005,0.000141,2]
[328553944,1717529223601,773.91751555,0.000141,2]
[328553945,1717529241347,1467.92149874,0.000141,2]
[328553946,1717529243450,1981.96946842,0.000141,2]
[328553947,1717529243589,216.51741948,0.000141,2]
[328553948,1717529248967,2035.10504658,0.000141,2]
[328553949,1717529251977,60444.1625586,0.00017898,7]
[328553950,1717529257447,1981.96946842,0.000141,2]
[328553951,1717529267276,1990.6832365,0.000141,2]
[328553952,1717529275470,384.67284097,0.000141,2]
[328553953,1717529277285,8949.53050323,0.000141,2]
[328553956,1717529299503,154.9690062,9.999e-05,2]
[328553957,1717529303342,194.93299377,9.999e-05,2]
[328553958,1717529304982,372.26650192,9.999e-05,2]
[328553959,1717529306373,525.5705473,9.999e-05,2]
[328553960,1717529306419,154.9690062,9.999e-05,2]
[328553961,1717529308383,185.24644316,9.999e-05,2]
[328553962,1717529310864,2111.8751688,9.999e-05,2]
[328553963,1717529311454,181.85934055,9.999e-05,2]
[328553964,1717529312870,185.24644316,9.999e-05,2]
[328553965,1717529316711,926.63597867,9.999e-05,2]
[328553966,1717529325666,489.25342672,9.999e-05,2]
[328553967,1717529327977,317.21490521,9.999e-05,2]
[328553968,1717529338955,521.566156,9.999e-05,2]
[328553969,1717529343526,522.66644541,9.999e-05,2]
[328553970,1717529350614,522.66644541,9.999e-05,2]
[328553971,1717529360859,14689.53323923,0.00013127,2]
[328553972,1717529360886,10210.46676077,0.00013127,2]
[328553973,1717529366848,154.9690062,9.999e-05,2]
[328554457,1717529438541,-185.24644316,0.00014011,2]
[328554458,1717529438551,-1776.10258288,0.00014011,2]
[328554459,1717529438563,-1293.242202,0.00014011,2]
[328554460,1717529438574,-727.9309042,0.00014012,2]
[328554461,1717529438584,-3255.68125751,0.00014108,2]
[328554462,1717529438596,-38810.89628244,0.00014108,2]
[328554463,1717529438605,-10533.03173901,0.00014109,2]
[328554464,1717529438615,-4536.05839762,0.00014109,2]
[328554478,1717529442887,-14756.43083054,0.00014109,2]
[328554480,1717529442897,-180.79836233,0.0001411,2]
[328554481,1717529442907,-25816.94450551,0.0001411,2]
[328554494,1717529443912,-21984.83403122,0.0001411,2]
[328554495,1717529443924,-2447.92270693,0.0001411,2]
[328554496,1717529443934,-264.99162177,0.00014114,2]
[328554497,1717529443943,-534.47359916,0.00014125,2]
[328554498,1717529443953,-530.29289426,0.00014126,2]
[328554499,1717529443962,-489.04932178,0.00014126,2]
[328554500,1717529443972,-311.40605183,0.00014126,2]
[328554501,1717529443981,-920.92330534,0.00014127,2]
[328554502,1717529443990,-1341.97127634,0.00014128,2]
[328554503,1717529444000,-1981.96946842,0.00014128,2]
[328554504,1717529444009,-1902.27689005,0.00014128,2]
[328554505,1717529444019,-174.14106579,0.00014128,2]
[328554506,1717529444029,-262.24739883,0.00014128,2]
[328554507,1717529444038,-382.51367772,0.00014128,2]
[328554508,1717529444047,-231.16656322,0.00014128,2]
[328554509,1717529444056,-158.02193897,0.00014128,2]
[328554510,1717529444065,-203.1080802,0.00014128,2]
[328554511,1717529444077,-264.42292043,0.00014128,2]
[328554512,1717529444087,-234.10638335,0.00014128,2]
[328554513,1717529444096,-773.91751555,0.00014128,2]
[328554514,1717529444105,-9581.0500174,0.00014128,2]
[328554515,1717529444114,-249.36740512,0.00014128,2]
[328554516,1717529444123,-195.29348369,0.00014128,2]
[328554517,1717529444132,-418.74173298,0.00014128,2]
[328554518,1717529444142,-183.39273866,0.00014128,2]
[328554519,1717529444151,-157.21937151,0.00014128,2]
[328554520,1717529444160,-235.97810081,0.00014129,2]
[328554521,1717529444169,-6664.17194564,0.00014129,2]
[328554522,1717529444178,-151.0,0.00014129,2]
[328554523,1717529444187,-151.0,0.00014129,2]
[328554524,1717529444196,-154.9690062,0.00014232,2]
[328554525,1717529444205,-922.03220598,0.00014247,2]
[328554526,1717529444214,-4234.71341694,0.0001457,2]
[328554527,1717529444223,-230.75228586,0.00014999,2]
[328554528,1717529444233,-156.0030059,0.00014999,2]
[328554529,1717529444242,-155.29201553,0.00014999,2]
[328554530,1717529444251,-158.16857541,0.00014999,2]
[328554531,1717529444260,-1099.72374413,0.00015,2]
[328554532,1717529444270,-436.86018646,0.00015,2]
[328554533,1717529444279,-154.9690062,0.00015,2]
[328554534,1717529444288,-292.07469675,0.00015014,2]
[328554535,1717529444389,-157.32925457,0.00015025,2]
[328554536,1717529444399,-198.94770051,0.00015068,2]
[328554537,1717529444409,-212.70942627,0.00015084,2]
[328554538,1717529444418,-1158.55052623,0.00015098,2]
[328554539,1717529444427,-1314.30385886,0.00015098,2]
[328554540,1717529444437,-159.65826894,0.00015098,2]
[328554541,1717529444447,-178.99983958,0.00015115,2]
[328554542,1717529444456,-1495.49737166,0.00015115,2]
[328554543,1717529444466,-155.37029912,0.00015115,2]
[328554544,1717529444475,-727.93090418,0.00015278,2]
[328554545,1717529444485,-944.7008589,0.00015344,2]
[328554546,1717529444494,-155.12723173,0.00015344,2]
[328554547,1717529444503,-529.60975391,0.00015449,2]
[328554548,1717529444513,-11087.33723422,0.00015663,2]
[328554549,1717529444522,-151.0,0.00015663,2]
[328554550,1717529444531,-151.0,0.00015663,2]
[328554551,1717529444541,-1196.58407429,0.00015667,2]
[328554552,1717529444551,-275.36212988,0.000165,2]
[328554553,1717529444560,-727.93090418,0.00016544,2]
[328554554,1717529444570,-727.93090418,0.00017809,2]
[328554555,1717529444581,-1694.50977724,0.00017898,2]
[328554556,1717529444590,-246.56972518,0.00017993,2]
[328554557,1717529444599,-1283.35159826,0.00017997,2]
[328554558,1717529444608,-897.83869455,0.00018,2]
[328554559,1717529444618,-2761.76093806,0.00018,2]
[328554560,1717529444628,-153.0,0.00018466,2]
[328554561,1717529444637,-606.06312262,0.000185,2]
[328554562,1717529444647,-1000.0,0.00018735,2]
[328554563,1717529444657,-151.0,0.00018735,2]
[328554564,1717529444666,-151.0,0.00018735,2]
[328554565,1717529444675,-483.797182,0.00018735,2]
[328554566,1717529444685,-483.797182,0.00018735,2]
[328554567,1717529444694,-1768.45227341,0.000189,2]
[328554568,1717529444703,-223.9,0.00018928,3]
[328554569,1717529444713,-162.93661136,0.00019,2]
[328554570,1717529444722,-150.54021813,0.00019,2]
[328554571,1717529444732,-7365.6072277,0.00019,2]
[328554572,1717529444741,-151.0,0.00019,2]
[328554573,1717529444751,-244.937309,0.00019,2]
[328554574,1717529444760,-727.93090418,0.00019075,2]
[328554575,1717529444769,-289.2571771,0.00019151,2]
[328554576,1717529444779,-153.0,0.00019151,2]
[328554577,1717529444791,-153.0,0.00019151,2]
[328554578,1717529444802,-153.0,0.00019151,2]
[328554579,1717529444811,-153.0,0.00019151,2]
[328554580,1717529444821,-240.58000195,0.00019173,2]
[328554581,1717529444831,-190.34144755,0.00019173,2]
[328554582,1717529444841,-186.76786124,0.00019173,2]
[328554583,1717529444851,-270.48137263,0.00019173,2]
[328554584,1717529444861,-289.02928673,0.00019173,2]
[328554585,1717529444873,-404.32402884,0.00019173,2]
[328554586,1717529444884,-155.0980268,0.00019174,2]
[328554587,1717529444893,-164.03162736,0.00019174,2]
[328554588,1717529444903,-215.58389067,0.00019174,2]
[328554589,1717529444912,-36187.49677505,0.00019175,2]
[328554590,1717529444922,-151.0,0.00019175,2]
[328554591,1717529444931,-151.0,0.00019175,2]
[328554592,1717529444940,-103.95957807,0.00019175,2]
[328554593,1717529444954,-48.34135093,0.00019175,2]
[328554594,1717529444963,-234.575626,0.00019175,2]
[328554595,1717529444973,-21.21601407,0.00019175,2]
[328554596,1717529444984,-129.78398593,0.00019175,2]
[328554597,1717529444993,-151.0,0.00019175,2]
[328554598,1717529445003,-69.81376161,0.00019175,2]
[328554599,1717529445014,-657.08796139,0.00019175,2]
[328554600,1717529445023,-151.0,0.00019175,2]
[328554601,1717529445032,-726.901723,0.00019175,2]
[328554602,1717529445041,-151.0,0.00019175,2]
[328554603,1717529445050,-77.62589531,0.00019175,2]
[328554616,1717529458409,273.37336231,9.9e-05,2]
[328554617,1717529466827,156.64393718,9.9e-05,2]
[328554618,1717529467632,210.70950124,0.00014,2]
[328554619,1717529470682,250.0,0.00013336,2]
[328554620,1717529477152,154.95351395,9.999e-05,2]
[328554621,1717529488378,154.95351395,9.999e-05,2]
[328554622,1717529491708,53573.40874633,0.00018,7]
[328554627,1717529524778,767.58,0.00010959,2]
[328554629,1717529552179,154.95351395,9.999e-05,2]
[328554630,1717529639272,50249.70124366,0.00014,2]
[328554631,1717529640738,10533.03173901,0.00014,2]
[328554632,1717529640909,185.24644316,0.00014,2]
[328554634,1717529654734,1169.59463924,0.00014,2]
[328554635,1717529657084,185.24644316,0.00014,2]
[328554636,1717529661200,20488.99409323,0.00014,2]
[328554637,1717529672917,185.24644316,0.00014,2]
[328554653,1717529990569,23315.1398496,0.00013699,2]
[328554665,1717530139914,755.777599,0.00013699,2]
[328554674,1717530337119,-185.24644316,0.00014002,2]
[328554675,1717530337138,-178.6278248,0.00014003,2]
[328554676,1717530337158,-155.1083158,0.00014101,2]
[328554677,1717530337177,-309.70578646,0.00014102,2]
[328554678,1717530337196,-59529.48385276,0.00014102,2]
[328554679,1717530337216,-1976.35166809,0.00014103,2]
[328554680,1717530337236,-409.34448884,0.00014103,2]
[328554681,1717530337255,-236.40929999,0.00014103,2]
[328554682,1717530337275,-155.33502581,0.00014103,2]
[328554683,1717530337293,-246.60309513,0.00014103,2]
[328554684,1717530337453,-155.63763529,0.00014103,2]
[328554685,1717530337475,-33108.516897,0.00014103,2]
[328554686,1717530337494,-725.24617809,0.00014104,2]
[328554687,1717530337513,-15897.96711289,0.00014106,2]
[328554688,1717530337532,-1042.85639592,0.00014107,2]
[328554689,1717530337552,-277.05086169,0.00015,2]
[328554690,1717530337572,-166.14632356,0.00015,2]
[328554691,1717530337591,-2494.40275771,0.00015,2]
[328554692,1717530337611,-178.62782479,0.00015272,2]
[328554693,1717530337631,-178.62782479,0.00016541,2]
[328554694,1717530337650,-178.62782479,0.00017809,2]
[328554695,1717530337669,-10144.53955464,0.00017898,2]
[328554696,1717530405119,-333.94711658,0.00017898,2]
[328554697,1717530405142,-2761.76093806,0.00018,2]
[328554698,1717530405166,-2091.76875712,0.00018,2]
[328554699,1717530405186,-897.83869455,0.00018499,2]
[328554700,1717530405206,-160.68177861,0.000185,2]
[328554701,1717530405228,-205.2,0.00018774,3]
[328554702,1717530405352,-2712.22506245,0.0001886,2]
[328554703,1717530428133,-1178.96818228,0.000189,2]
[328554704,1717530428154,-300.0,0.00018965,2]
[328554705,1717530428173,-162.93661136,0.00019,2]
[328554706,1717530428193,-7365.6072277,0.0001905,2]
[328554707,1717530428212,-1793.62210352,0.00019051,2]
[328554708,1717530428230,-178.62782479,0.00019078,2]
[328554709,1717530428248,-2761.76093806,0.00019094,2]
[328554710,1717530428267,-605.6006438,0.00019094,2]
[328554711,1717530428394,-960.64579979,0.00019094,2]
[328554712,1717530428414,-1098.98243404,0.00019095,2]
[328554713,1717530428433,-3397.25653466,0.00019096,2]
[328554714,1717530428514,-21502.74346534,0.00019096,2]
[328554715,1717530428535,-153.0,0.00019151,2]
[328554716,1717530428558,-204.985722,0.00019151,2]
[328554717,1717530428579,-153.0,0.00019151,2]
[328554718,1717530428600,-153.0,0.00019151,2]
[328554719,1717530428621,-205.0679425,0.00019151,2]
[328554720,1717530428644,-153.0,0.00019151,2]
[328554721,1717530428664,-205.0679425,0.00019151,2]
[328554722,1717530428685,-205.0679425,0.00019151,2]
[328554723,1717530428705,-153.0,0.00019151,2]
[328554724,1717530428725,-205.0679425,0.00019151,2]
[328554725,1717530428745,-153.0,0.00019151,2]
[328554726,1717530428765,-153.0,0.00019151,2]
[328554727,1717530428790,-425.8418752,0.00019151,2]
[328554728,1717530428810,-7146.29628896,0.00019176,2]
[328554729,1717530428830,-409.90724693,0.00019176,2]
[328554730,1717530428849,-2408.21649593,0.00019177,2]
[328554731,1717530428871,-164.98319801,0.00019177,2]
[328554732,1717530428895,-36368.83920115,0.00019178,7]
[328554733,1717530428917,-2066.56998844,0.00019178,2]
[328554734,1717530428940,-2287.09281544,0.00019178,2]
[328554735,1717530428961,-2287.09281544,0.00019178,2]
[328554736,1717530428985,-2287.09281544,0.00019178,2]
[328554737,1717530429006,-2287.09281544,0.00019178,2]
[328554738,1717530429025,-2287.09281544,0.00019178,2]
[328554739,1717530429046,-2287.09281544,0.00019178,2]
[328554740,1717530429069,-2287.09281544,0.00019178,2]
[328554741,1717530429093,-2287.09281544,0.00019178,2]
[328554742,1717530429116,-2287.09281544,0.00019178,2]
[328554743,1717530429140,-2287.09281544,0.00019178,2]
[328554744,1717530429163,-2287.09281544,0.00019178,2]
[328554745,1717530429187,-2287.09281544,0.00019178,2]
[328554746,1717530429209,-2287.09281543,0.00019178,2]
[328554747,1717530429232,-2287.09281543,0.00019178,2]
[328554748,1717530429257,-2287.09281543,0.00019178,2]
[328554749,1717530429280,-2287.09281543,0.00019178,2]
[328554750,1717530429302,-2287.09281543,0.00019178,2]
[328554751,1717530429323,-2287.09281543,0.00019178,2]
[328554752,1717530429346,-2287.09281543,0.00019178,2]
[328554753,1717530429366,-408.49213274,0.00019178,2]
[328554754,1717530429390,-500.0,0.00019178,2]
[328554755,1717530429412,-152.05845096,0.00019178,2]
[328554756,1717530429433,-500.0,0.00019178,2]
[328554757,1717530429455,-390.11193141,0.00019178,2]
[328554758,1717530429481,-500.0,0.00019178,2]
[328554759,1717530429503,-500.0,0.00019178,2]
[328554760,1717530429524,-304.88976376,0.00019178,2]
[328554761,1717530429547,-500.0,0.00019178,2]
[328554762,1717530429570,-500.0,0.00019178,2]
[328554763,1717530429594,-500.0,0.00019178,2]
[328554764,1717530429615,-394.01975565,0.00019178,2]
[328554765,1717530429636,-554.27741816,0.00019178,2]
[328554766,1717530429660,-500.0,0.00019178,2]
[328554767,1717530429683,-906.34076888,0.00019178,2]
[328554768,1717530429703,-395.28860437,0.00019178,2]
[328554769,1717530429730,-500.0,0.00019178,2]
[328554770,1717530429752,-906.34076888,0.00019178,2]
[328554771,1717530429775,-906.34076888,0.00019178,2]
[328554772,1717530429796,-282.43660532,0.00019178,2]
[328554773,1717530429820,-906.34076888,0.00019178,2]
[328554774,1717530429843,-906.34076888,0.00019178,2]
[328554775,1717530429865,-906.34076888,0.00019178,2]
[328554776,1717530429890,-906.34076888,0.00019178,2]
[328554777,1717530429912,-906.34076888,0.00019178,2]
[328554778,1717530429935,-906.34076888,0.00019178,2]
[328554779,1717530429957,-906.34076888,0.00019178,2]
[328554780,1717530429980,-906.34076888,0.00019178,2]
[328554781,1717530430001,-906.34076888,0.00019178,2]
[328554782,1717530430024,-906.34076888,0.00019178,2]
[328554783,1717530430046,-906.34076888,0.00019178,2]
[328554784,1717530430067,-906.34076888,0.00019178,2]
[328554785,1717530430093,-906.34076888,0.00019178,2]
[328554786,1717530430115,-906.34076888,0.00019178,2]
[328554787,1717530430140,-906.34076888,0.00019178,2]
[328554788,1717530430162,-906.34076888,0.00019178,2]
[328554789,1717530430189,-906.34076888,0.00019178,2]
[328554790,1717530430210,-906.34076888,0.00019178,2]
[328554791,1717530430233,-906.34076888,0.00019178,2]
[328554792,1717530430256,-906.34076888,0.00019178,2]
[328554793,1717530430278,-906.34076888,0.00019178,2]
[328554794,1717530430300,-906.34076888,0.00019178,2]
[328554795,1717530430322,-906.34076888,0.00019178,2]
[328554796,1717530430344,-906.34076888,0.00019178,2]
[328554797,1717530430366,-906.34076888,0.00019178,2]
[328554798,1717530430387,-500.0,0.00019178,2]
[328554799,1717530430410,-604.37286716,0.00019178,2]
[328554800,1717530430431,-313.09836297,0.00019178,2]
[328554801,1717530430450,-500.0,0.00019178,2]
[328554802,1717530430472,-500.0,0.00019178,2]
[328554803,1717530430494,-500.0,0.00019178,2]
[328554804,1717530430516,-500.0,0.00019178,2]
[328554805,1717530430545,-500.0,0.00019178,2]
[328554806,1717530430567,-500.0,0.00019178,2]
[328554807,1717530430591,-446.54396365,0.00019178,2]
[328554808,1717530430613,-500.0,0.00019178,2]
[328554809,1717530430634,-500.0,0.00019178,2]
[328554810,1717530430657,-500.0,0.00019178,2]
[328554811,1717530430678,-500.0,0.00019178,2]
[328554812,1717530430700,-673.20978222,0.00019178,2]
[328554813,1717530430722,-673.20978222,0.00019178,2]
[328554814,1717530430744,-673.20978222,0.00019178,2]
[328554815,1717530430764,-673.20978222,0.00019178,2]
[328554816,1717530430888,-673.20978222,0.00019178,2]
[328554817,1717530430909,-673.20978222,0.00019178,2]
[328554818,1717530430930,-673.20978222,0.00019178,2]
[328554819,1717530430950,-673.20978222,0.00019178,2]
[328554820,1717530430970,-673.20978222,0.00019178,2]
[328554821,1717530430990,-673.20978222,0.00019178,2]
[328554822,1717530431010,-673.20978222,0.00019178,2]
[328554823,1717530431031,-673.20978222,0.00019178,2]
[328554824,1717530431051,-673.20978222,0.00019178,2]
[328554825,1717530431072,-673.20978222,0.00019178,2]
[328554826,1717530431096,-673.20978222,0.00019178,2]
[328554827,1717530431118,-673.20978222,0.00019178,2]
[328554828,1717530431142,-673.20978222,0.00019178,2]
[328554829,1717530431162,-673.20978222,0.00019178,2]
[328554830,1717530431188,-673.20978222,0.00019178,2]
[328554831,1717530431209,-673.20978222,0.00019178,2]
[328554832,1717530431230,-673.20978222,0.00019178,2]
[328554833,1717530431251,-673.20978222,0.00019178,2]
[328554834,1717530431271,-1898.53100191,0.00019178,2]
[328554835,1717530431292,-1898.53100191,0.00019178,2]
[328554836,1717530431312,-1898.53100191,0.00019178,2]
[328554837,1717530431333,-1898.53100191,0.00019178,2]
[328554838,1717530431353,-1898.53100191,0.00019178,2]
[328554839,1717530431373,-1898.53100191,0.00019178,2]
[328554840,1717530431395,-1898.53100191,0.00019178,2]
[328554841,1717530431416,-1898.53100191,0.00019178,2]
[328554842,1717530431437,-1898.53100191,0.00019178,2]
[328554843,1717530431458,-1898.53100191,0.00019178,2]
[328554844,1717530431479,-1898.53100191,0.00019178,2]
[328554845,1717530431500,-1898.53100191,0.00019178,2]
[328554846,1717530431522,-1898.53100191,0.00019178,2]
[328554847,1717530431544,-1898.53100187,0.00019178,2]
[328554848,1717530431564,-500.0,0.00019178,2]
[328554849,1717530431583,-500.0,0.00019178,2]
[328554850,1717530431603,-500.0,0.00019178,2]
[328554851,1717530431622,-500.0,0.00019178,2]
[328554852,1717530431644,-245.28576535,0.00019178,2]
[328554853,1717530431663,-500.0,0.00019178,2]
[328554854,1717530431684,-500.0,0.00019178,2]
[328554855,1717530431704,-500.0,0.00019178,2]
[328554856,1717530431728,-625.07904196,0.00019178,2]
[328554857,1717530431749,-500.0,0.00019178,2]
[328554858,1717530431770,-215.51886132,0.00019178,2]
[328554859,1717530431790,-500.0,0.00019178,2]
[328554860,1717530431811,-467.33908795,0.00019178,2]
[328554861,1717530431833,-500.0,0.00019178,2]
[328554862,1717530431854,-374.09817113,0.00019178,2]
[328554863,1717530431876,-500.0,0.00019178,2]
[328554864,1717530431899,-586.98921354,0.00019178,2]
[328554865,1717530431920,-378.31447046,0.00019178,2]
[328554866,1717530431940,-388.78103986,0.00019178,2]
[328554867,1717530431961,-500.0,0.00019178,2]
[328554868,1717530431981,-468.55352757,0.00019178,2]
[328554869,1717530432001,-237.34583463,0.00019178,2]
[328554870,1717530432026,-500.0,0.00019178,2]
[328554871,1717530432046,-500.0,0.00019178,2]
[328554872,1717530432066,-500.0,0.00019178,2]
[328554873,1717530432089,-254.205205,0.00019178,2]
[328554874,1717530432117,-151.0,0.00019178,2]
[328554875,1717530432138,-161.302307,0.00019178,2]
[328554876,1717530432160,-165.18216,0.00019178,2]
[328554877,1717530432180,-165.18216,0.00019178,2]
[328554878,1717530432203,-165.18216,0.00019178,2]
[328554879,1717530432223,-165.18216,0.00019178,2]
[328554880,1717530432243,-165.18216,0.00019178,2]
[328554881,1717530432264,-165.18216,0.00019178,2]
[328554882,1717530432285,-165.18216,0.00019178,2]
[328554883,1717530432307,-165.18216,0.00019178,2]
[328554884,1717530432333,-268.748727,0.00019178,2]
[328554885,1717530432355,-165.18216,0.00019178,2]
[328554886,1717530432376,-268.748727,0.00019178,2]
[328554887,1717530432399,-165.18216,0.00019178,2]
[328554888,1717530432420,-268.748727,0.00019178,2]
[328554889,1717530432440,-165.18216,0.00019178,2]
[328554890,1717530432463,-268.748727,0.00019178,2]
[328554891,1717530432484,-165.18216,0.00019178,2]
[328554892,1717530432505,-268.748727,0.00019178,2]
[328554893,1717530432526,-165.18216,0.00019178,2]
[328554894,1717530432547,-268.748727,0.00019178,2]
[328554895,1717530432570,-165.18216,0.00019178,2]
[328554896,1717530432590,-268.748727,0.00019178,2]
[328554897,1717530432610,-165.18216,0.00019178,2]
[328554898,1717530432631,-268.748727,0.00019178,2]
[328554899,1717530432652,-165.18216,0.00019178,2]
[328554900,1717530432673,-268.748727,0.00019178,2]
[328554901,1717530432694,-165.18216,0.00019178,2]
[328554902,1717530432714,-268.748727,0.00019178,2]
[328554903,1717530432735,-165.18216,0.00019178,2]
[328554904,1717530432756,-268.748727,0.00019178,2]
[328554905,1717530432776,-165.18216,0.00019178,2]
[328554906,1717530432797,-268.748727,0.00019178,2]
[328554907,1717530432818,-165.182157,0.00019178,2]
[328554908,1717530432838,-268.748727,0.00019178,2]
[328554909,1717530432858,-268.748727,0.00019178,2]
[328554910,1717530432878,-268.748727,0.00019178,2]
[328554911,1717530432902,-268.748727,0.00019178,2]
[328554912,1717530432921,-268.748727,0.00019178,2]
[328554913,1717530432941,-268.748727,0.00019178,2]
[328554914,1717530432960,-268.748727,0.00019178,2]
[328554915,1717530432979,-268.748727,0.00019178,2]
[328554916,1717530432998,-151.0,0.00019178,2]
[328554917,1717530433017,-151.0,0.00019178,2]
[328554918,1717530433120,-151.0,0.00019178,2]
[328554919,1717530433142,-151.0,0.00019178,2]